fUST/lending_fUST_20250312
["ID","MTS","AMOUNT","RATE_DAILY","PERIOD"]
[355926791,1741716719422,-500.0,0.00023835,2]
[355926792,1741716719431,-751.32,0.00023835,2]
[355926793,1741716719440,-1067.93,0.00023835,2]
[355926794,1741716719450,-500.0,0.00023835,2]
[355926795,1741716719460,-500.0,0.00023835,2]
[355926796,1741716719469,-725.1,0.00023835,2]
[355926797,1741716719479,-500.0,0.00023835,2]
[355926798,1741716719489,-5830.62,0.00023835,2]
[355926799,1741716719498,-500.0,0.00023835,2]
[355926800,1741716719508,-13663.82,0.00023835,2]
[355926801,1741716719517,-8586.74,0.00023835,2]
[355926802,1741716719527,-500.0,0.00023835,2]
[355926803,1741716719536,-500.0,0.00023835,2]
[355926804,1741716719546,-500.0,0.00023835,2]
[355926805,1741716719555,-500.0,0.00023835,2]
[355926806,1741716719566,-1052.85,0.00023835,2]
[355926807,1741716719576,-710.74,0.00023835,2]
[355926808,1741716719587,-500.0,0.00023835,2]
[355926809,1741716719596,-1490.39,0.00023835,2]
[355926810,1741716719606,-562.29,0.00023835,2]
[355926811,1741716719615,-2664.47,0.00023835,2]
[355926812,1741716719624,-760.33,0.00023835,2]
[355926813,1741716719635,-500.0,0.00023835,2]
[355926814,1741716719645,-9046.62,0.00023835,2]
[355926815,1741716719655,-500.0,0.00023835,2]
[355926816,1741716719665,-683.04,0.00023835,2]
[355926817,1741716719675,-3131.63,0.00023835,2]
[355926818,1741716719684,-1176.59,0.00023835,2]
[355926819,1741716719694,-1428.31,0.00023835,2]
[355926820,1741716719704,-1006.02,0.00023835,2]
[355926821,1741716719714,-213.70358955,0.00023835,2]
[355926822,1741716719723,-737.6620358,0.00023835,2]
[355926823,1741716719733,-1287.74,0.00023835,2]
[355926824,1741716719743,-1569.12,0.00023835,2]
[355926825,1741716719753,-2049.22,0.00023835,2]
[355926826,1741716719763,-500.0,0.00023835,2]
[355926827,1741716719772,-500.0,0.00023835,2]
[355926828,1741716719782,-1105.59,0.00023835,2]
[355926829,1741716719791,-1986.41,0.00023835,2]
[355926830,1741716719801,-633.94,0.00023835,2]
[355926831,1741716719810,-701.01,0.00023835,2]
[355926832,1741716719822,-500.0,0.00023835,2]
[355926833,1741716719832,-1151.53,0.00023835,2]
[355926834,1741716719841,-500.0,0.00023835,2]
[355926835,1741716719851,-1137.57,0.00023835,2]
[355926836,1741716719861,-500.0,0.00023835,2]
[355926837,1741716719871,-500.0,0.00023835,2]
[355926838,1741716719881,-2208.74,0.00023835,2]
[355926839,1741716719891,-500.0,0.00023835,2]
[355926840,1741716719900,-500.0,0.00023835,2]
[355926841,1741716719909,-3979.18,0.00023835,2]
[355926842,1741716719919,-779.1,0.00023835,2]
[355926843,1741716719928,-500.0,0.00023835,2]
[355926844,1741716719938,-16462.07,0.00023835,2]
[355926845,1741716719947,-690.32,0.00023835,2]
[355926846,1741716719957,-200359.58856942,0.00023862,2]
[355926847,1741716719967,-350.0,0.00023868,2]
[355926848,1741716719976,-1875.57303325,0.000239,2]
[355926849,1741716719986,-277.15114924,0.00023918,2]
[355926850,1741716719996,-151.0,0.00023963,7]
[355926851,1741716720005,-151.0,0.00023963,7]
[355926852,1741716720015,-151.0,0.00023963,7]
[355926853,1741716720024,-151.0,0.00023963,7]
[355926854,1741716720034,-151.0,0.00023963,7]
[355926855,1741716720046,-151.0,0.00023963,7]
[355926856,1741716720057,-151.0,0.00023963,7]
[355926857,1741716720068,-151.0,0.00023963,7]
[355926858,1741716720077,-151.0,0.00023963,7]
[355926859,1741716720087,-151.0,0.00023963,7]
[355926860,1741716720096,-151.0,0.00023963,7]
[355926861,1741716720112,-151.0,0.00023963,7]
[355926862,1741716720121,-151.0,0.00023963,7]
[355926863,1741716720131,-151.0,0.00023963,7]
[355926864,1741716720141,-151.0,0.00023963,7]
[355926865,1741716720150,-151.0,0.00023963,7]
[355926866,1741716720160,-283.680156,0.00023963,7]
[355926867,1741716720170,-151.0,0.00023966,7]
[355926868,1741716720180,-200.0,0.00023967,2]
[355926869,1741716720191,-15572.92107546,0.00024,7]
[355926870,1741716720201,-416.66666667,0.00024,7]
[355926871,1741716720211,-2000.0,0.00024,4]
[355926872,1741716720221,-4176.6456866,0.00024009,2]
[355926873,1741716720231,-1152.0,0.0002401,2]
[355926874,1741716720242,-277.15114924,0.00024055,2]
[355926875,1741716720253,-500.0,0.00024109,2]
[355926876,1741716720264,-1340.89,0.00024109,2]
[355926877,1741716720275,-1201.45,0.00024109,2]
[355926878,1741716720285,-590.28,0.00024109,2]
[355926879,1741716720295,-500.0,0.00024109,2]
[355926880,1741716720306,-500.0,0.00024109,2]
[355926881,1741716720317,-500.0,0.00024109,2]
[355926882,1741716720327,-500.0,0.00024109,2]
[355926883,1741716720336,-500.0,0.00024109,2]
[355926884,1741716720346,-500.0,0.00024109,2]
[355926885,1741716720355,-513.85,0.00024109,2]
[355926886,1741716720365,-1074.73,0.00024109,2]
[355926887,1741716720374,-500.0,0.00024109,2]
[355926888,1741716720384,-500.0,0.00024109,2]
[355926889,1741716720394,-588.14528816,0.00024109,2]
[355926890,1741716720403,-500.0,0.00024109,2]
[355926891,1741716720413,-500.0,0.00024109,2]
[355926892,1741716720422,-500.0,0.00024109,2]
[355926893,1741716720432,-581.53,0.00024109,2]
[355926894,1741716720441,-500.0,0.00024109,2]
[355926895,1741716720451,-500.0,0.00024109,2]
[355926896,1741716720461,-500.0,0.00024109,2]
[355926897,1741716720470,-564.59958604,0.00024109,2]
[355926898,1741716720480,-500.0,0.00024109,2]
[355926899,1741716720489,-809.72,0.00024109,2]
[355926900,1741716720499,-500.0,0.00024109,2]
[355926901,1741716720509,-1428.98,0.00024109,2]
[355926902,1741716720518,-528.92972143,0.00024109,2]
[355926903,1741716720527,-500.0,0.00024109,2]
[355926904,1741716720537,-1443.03,0.00024109,2]
[355926905,1741716720546,-500.0,0.00024109,2]
[355926906,1741716720556,-606.78,0.00024109,2]
[355926907,1741716720568,-542.11338,0.00024109,2]
[355926908,1741716720578,-242.97237717,0.00024109,2]
[355926909,1741716720588,-500.0,0.00024109,2]
[355926910,1741716720597,-500.0,0.00024109,2]
[355926911,1741716720607,-500.0,0.00024109,2]
[355926912,1741716720617,-500.0,0.00024109,2]
[355926913,1741716720626,-564.97369218,0.00024109,2]
[355926914,1741716720636,-500.0,0.00024109,2]
[355926915,1741716720645,-500.0,0.00024109,2]
[355926916,1741716720655,-500.0,0.00024109,2]
[355926917,1741716720664,-500.0,0.00024109,2]
[355926918,1741716720674,-500.0,0.00024109,2]
[355926919,1741716720684,-1247.36,0.00024109,2]
[355926920,1741716720693,-500.0,0.00024109,2]
[355926921,1741716720703,-500.0,0.00024109,2]
[355926922,1741716720712,-500.0,0.00024109,2]
[355926923,1741716720722,-500.0,0.00024109,2]
[355926924,1741716720732,-500.0,0.00024109,2]
[355926925,1741716720742,-501.99,0.00024109,2]
[355926926,1741716720751,-220.58647357,0.00024109,2]
[355926927,1741716720761,-1321.15,0.00024109,2]
[355926928,1741716720771,-500.0,0.00024109,2]
[355926929,1741716720780,-500.0,0.00024109,2]
[355926930,1741716720790,-500.0,0.00024109,2]
[355926931,1741716720800,-500.0,0.00024109,2]
[355926932,1741716720810,-500.0,0.00024109,2]
[355926933,1741716720823,-1620.73,0.00024109,5]
[355926934,1741716720833,-1350.19,0.00024109,2]
[355926935,1741716720843,-500.0,0.00024109,2]
[355926936,1741716720853,-500.0,0.00024109,2]
[355926937,1741716720863,-513.47999423,0.00024109,2]
[355926938,1741716720873,-1488.21,0.00024109,2]
[355926939,1741716720883,-500.0,0.00024109,2]
[355926940,1741716720893,-500.0,0.00024109,2]
[355926941,1741716720903,-181.62774334,0.00024109,2]
[355926942,1741716720913,-500.0,0.00024109,2]
[355926943,1741716720923,-500.0,0.00024109,2]
[355926944,1741716720934,-500.0,0.00024109,2]
[355926945,1741716720944,-1803.96,0.00024109,2]
[355926946,1741716720954,-500.0,0.00024109,2]
[355926947,1741716720964,-500.0,0.00024109,2]
[355926948,1741716720974,-500.0,0.00024109,2]
[355926949,1741716720983,-569.0491125,0.00024109,2]
[355926950,1741716720993,-500.0,0.00024109,2]
[355926951,1741716721002,-500.0,0.00024109,2]
[355926952,1741716721012,-500.0,0.00024109,2]
[355926953,1741716721303,-500.0,0.00024109,2]
[355926954,1741716721316,-634.5747152,0.00024109,2]
[355926955,1741716721327,-657.25,0.00024109,2]
[355926956,1741716721338,-788.64,0.00024109,2]
[355926957,1741716721349,-857.78,0.00024109,2]
[355926958,1741716721359,-315.49925075,0.00024109,2]
[355926959,1741716721370,-500.0,0.00024109,2]
[355926960,1741716721381,-2304.11,0.00024109,2]
[355926961,1741716721391,-500.0,0.00024109,2]
[355926962,1741716721400,-2654.41,0.00024109,2]
[355926963,1741716721410,-912.54,0.00024109,2]
[355926964,1741716721420,-3573.38,0.00024109,2]
[355926965,1741716721431,-627.59,0.00024109,2]
[355926966,1741716721441,-1747.6,0.00024109,2]
[355926967,1741716721451,-500.0,0.00024109,2]
[355926968,1741716721461,-574.19,0.00024109,2]
[355926969,1741716721473,-500.0,0.00024109,2]
[355926970,1741716721483,-500.0,0.00024109,2]
[355926971,1741716721493,-617.45,0.00024109,2]
[355926972,1741716721504,-500.0,0.00024109,2]
[355926973,1741716721514,-500.0,0.00024109,2]
[355926974,1741716721524,-500.0,0.00024109,2]
[355926975,1741716721534,-512.1,0.00024109,2]
[355926976,1741716721544,-500.0,0.00024109,2]
[355926977,1741716721554,-1624.83,0.00024109,2]
[355926978,1741716721565,-500.0,0.00024109,2]
[355926979,1741716721576,-254.89047013,0.00024109,2]
[355926980,1741716721586,-1388.31,0.00024109,2]
[355926981,1741716721596,-500.0,0.00024109,2]
[355926982,1741716721606,-500.0,0.00024109,2]
[355926983,1741716721617,-500.0,0.00024109,2]
[355926984,1741716721627,-500.0,0.00024109,2]
[355926985,1741716721637,-500.0,0.00024109,2]
[355926986,1741716721647,-2527.61,0.00024109,2]
[355926987,1741716721657,-1505.11,0.00024109,2]
[355926988,1741716721667,-1159.19,0.00024109,2]
[355926989,1741716721676,-500.0,0.00024109,2]
[355926990,1741716721686,-500.0,0.00024109,2]
[355926991,1741716721696,-500.0,0.00024109,2]
[355926992,1741716721706,-500.0,0.00024109,2]
[355926993,1741716721716,-1771.79,0.00024109,2]
[355926994,1741716721725,-2594.12,0.00024109,2]
[355926995,1741716721735,-500.0,0.00024109,2]
[355926996,1741716721746,-564.98,0.00024109,2]
[355926997,1741716721756,-741.15,0.00024109,2]
[355926998,1741716721767,-514.01,0.00024109,2]
[355926999,1741716721778,-500.0,0.00024109,2]
[355927000,1741716721788,-500.0,0.00024109,2]
[355927001,1741716721798,-500.0,0.00024109,2]
[355927002,1741716721809,-500.0,0.00024109,2]
[355927003,1741716721822,-773.02,0.00024109,2]
[355927004,1741716721832,-500.0,0.00024109,2]
[355927005,1741716721842,-783.0,0.00024109,2]
[355927006,1741716721852,-500.0,0.00024109,2]
[355927007,1741716721862,-500.0,0.00024109,2]
[355927008,1741716721872,-1890.4,0.00024109,2]
[355927009,1741716721882,-500.0,0.00024109,2]
[355927010,1741716721892,-500.0,0.00024109,2]
[355927011,1741716721903,-500.0,0.00024109,2]
[355927012,1741716721913,-669.95,0.00024109,2]
[355927013,1741716721923,-500.0,0.00024109,2]
[355927014,1741716721933,-647.88,0.00024109,2]
[355927015,1741716721943,-1680.4,0.00024109,2]
[355927016,1741716721953,-500.0,0.00024109,2]
[355927017,1741716721962,-1121.75,0.00024109,2]
[355927018,1741716721972,-523.3,0.00024109,2]
[355927019,1741716721982,-500.0,0.00024109,2]
[355927020,1741716721992,-647.83,0.00024109,2]
[355927021,1741716722001,-500.0,0.00024109,2]
[355927022,1741716722011,-1614.37,0.00024109,2]
[355927023,1741716722022,-500.0,0.00024109,2]
[355927024,1741716722032,-500.0,0.00024109,2]
[355927025,1741716722043,-607.02,0.00024109,2]
[355927026,1741716722056,-800.76,0.00024109,2]
[355927027,1741716722067,-1280.44,0.00024109,2]
[355927028,1741716722077,-500.0,0.00024109,2]
[355927029,1741716722087,-500.0,0.00024109,2]
[355927030,1741716722098,-555.5,0.00024109,2]
[355927031,1741716722107,-500.0,0.00024109,2]
[355927032,1741716722117,-500.0,0.00024109,2]
[355927033,1741716722128,-500.0,0.00024109,2]
[355927034,1741716722138,-721.26,0.00024109,2]
[355927035,1741716722148,-1615.29,0.00024109,2]
[355927036,1741716722158,-500.0,0.00024109,2]
[355927037,1741716722168,-500.0,0.00024109,2]
[355927038,1741716722178,-500.0,0.00024109,2]
[355927039,1741716722187,-500.0,0.00024109,2]
[355927040,1741716722197,-500.0,0.00024109,2]
[355927041,1741716722207,-1063.8,0.00024109,2]
[355927042,1741716722218,-993.16,0.00024109,2]
[355927043,1741716722227,-500.0,0.00024109,2]
[355927044,1741716722237,-2377.08,0.00024109,2]
[355927045,1741716722247,-500.0,0.00024109,2]
[355927046,1741716722257,-500.0,0.00024109,2]
[355927047,1741716722266,-500.0,0.00024109,2]
[355927048,1741716722276,-1689.79,0.00024109,2]
[355927049,1741716722286,-1182.74,0.00024109,2]
[355927050,1741716722296,-500.0,0.00024109,2]
[355927051,1741716722305,-530.85983717,0.00024109,2]
[355927052,1741716722315,-500.0,0.00024109,2]
[355927053,1741716722325,-500.0,0.00024109,2]
[355927054,1741716722336,-2662.49,0.00024109,2]
[355927055,1741716722346,-1204.27,0.00024109,2]
[355927056,1741716722357,-760.44,0.00024109,2]
[355927057,1741716722367,-717.54,0.00024109,2]
[355927058,1741716722377,-500.0,0.00024109,2]
[355927059,1741716722387,-500.0,0.00024109,2]
[355927060,1741716722397,-513.22129983,0.00024109,2]
[355927061,1741716722407,-500.0,0.00024109,2]
[355927062,1741716722416,-1467.71,0.00024109,2]
[355927063,1741716722426,-500.0,0.00024109,2]
[355927064,1741716722436,-2537.49,0.00024109,2]
[355927065,1741716722446,-500.0,0.00024109,2]
[355927066,1741716722455,-500.0,0.00024109,2]
[355927067,1741716722465,-500.0,0.00024109,2]
[355927068,1741716722475,-1701.43,0.00024109,2]
[355927069,1741716722486,-500.0,0.00024109,2]
[355927070,1741716722496,-500.0,0.00024109,2]
[355927071,1741716722506,-1155.99,0.00024109,2]
[355927072,1741716722516,-500.0,0.00024109,2]
[355927073,1741716722527,-500.0,0.00024109,2]
[355927074,1741716722537,-644.13,0.00024109,2]
[355927075,1741716722546,-500.0,0.00024109,2]
[355927076,1741716722556,-834.21,0.00024109,2]
[355927077,1741716722566,-798.51,0.00024109,2]
[355927078,1741716722576,-500.0,0.00024109,2]
[355927079,1741716722587,-500.0,0.00024109,2]
[355927080,1741716722597,-908.5,0.00024109,2]
[355927081,1741716722607,-500.0,0.00024109,2]
[355927082,1741716722617,-500.0,0.00024109,2]
[355927083,1741716722627,-572.05,0.00024109,2]
[355927084,1741716722637,-500.0,0.00024109,2]
[355927085,1741716722648,-1740.21,0.00024109,2]
[355927086,1741716722657,-1291.37,0.00024109,2]
[355927087,1741716722667,-500.0,0.00024109,2]
[355927088,1741716722677,-682.17,0.00024109,2]
[355927089,1741716722687,-500.0,0.00024109,2]
[355927090,1741716722696,-1766.21,0.00024109,2]
[355927091,1741716722706,-893.83,0.00024109,2]
[355927092,1741716722716,-500.0,0.00024109,2]
[355927093,1741716722725,-500.0,0.00024109,2]
[355927094,1741716722736,-500.0,0.00024109,2]
[355927095,1741716722746,-500.0,0.00024109,2]
[355927096,1741716722755,-500.0,0.00024109,2]
[355927097,1741716722765,-2321.3,0.00024109,2]
[355927098,1741716722776,-500.0,0.00024109,2]
[355927099,1741716722786,-500.0,0.00024109,2]
[355927100,1741716722796,-1549.95,0.00024109,2]
[355927101,1741716722805,-2086.15,0.00024109,2]
[355927102,1741716722817,-500.0,0.00024109,2]
[355927103,1741716722827,-500.0,0.00024109,2]
[355927104,1741716722837,-1804.17,0.00024109,2]
[355927105,1741716722846,-931.4,0.00024109,2]
[355927106,1741716722856,-500.0,0.00024109,2]
[355927107,1741716722867,-1203.57,0.00024109,2]
[355927108,1741716722876,-936.91,0.00024109,2]
[355927109,1741716722886,-1955.81,0.00024109,2]
[355927110,1741716722896,-1167.97,0.00024109,2]
[355927111,1741716722906,-500.0,0.00024109,2]
[355927112,1741716722916,-500.0,0.00024109,2]
[355927113,1741716722926,-500.0,0.00024109,2]
[355927114,1741716722935,-500.0,0.00024109,2]
[355927115,1741716722945,-3441.63,0.00024109,2]
[355927116,1741716722955,-500.0,0.00024109,2]
[355927117,1741716722965,-555.43067993,0.00024109,2]
[355927118,1741716722976,-500.0,0.00024109,2]
[355927119,1741716722986,-551.49281262,0.00024109,2]
[355927120,1741716722995,-500.0,0.00024109,2]
[355927121,1741716723004,-1028.23,0.00024109,2]
[355927122,1741716723014,-500.0,0.00024109,2]
[355927123,1741716723023,-1565.71,0.00024109,2]
[355927124,1741716723034,-1264.65,0.00024109,2]
[355927125,1741716723049,-500.0,0.00024109,2]
[355927126,1741716723059,-500.0,0.00024109,2]
[355927127,1741716723071,-500.0,0.00024109,2]
[355927128,1741716723083,-1625.43,0.00024109,2]
[355927129,1741716723092,-1803.2,0.00024109,2]
[355927130,1741716723103,-500.0,0.00024109,2]
[355927131,1741716723113,-500.0,0.00024109,2]
[355927132,1741716723125,-500.0,0.00024109,2]
[355927133,1741716723135,-500.0,0.00024109,2]
[355927134,1741716723146,-500.0,0.00024109,2]
[355927135,1741716723156,-1045.75,0.00024109,2]
[355927136,1741716723167,-500.0,0.00024109,2]
[355927137,1741716723177,-791.16,0.00024109,2]
[355927138,1741716723189,-500.0,0.00024109,2]
[355927139,1741716723201,-500.0,0.00024109,2]
[355927140,1741716723211,-346.83444786,0.00024109,2]
[355927141,1741716723222,-500.0,0.00024109,2]
[355927142,1741716723232,-516.40824254,0.00024109,2]
[355927143,1741716723242,-500.0,0.00024109,2]
[355927144,1741716723252,-500.0,0.00024109,2]
[355927145,1741716723261,-500.0,0.00024109,2]
[355927146,1741716723270,-500.0,0.00024109,2]
[355927147,1741716723282,-500.0,0.00024109,2]
[355927148,1741716723293,-500.0,0.00024109,2]
[355927149,1741716723304,-500.0,0.00024109,2]
[355927150,1741716723316,-500.0,0.00024109,2]
[355927151,1741716723329,-500.0,0.00024109,2]
[355927152,1741716723339,-500.0,0.00024109,2]
[355927153,1741716723350,-507.4863793,0.00024109,2]
[355927154,1741716723360,-499.85276344,0.00024109,2]
[355927155,1741716723370,-500.0,0.00024109,2]
[355927156,1741716723381,-500.0,0.00024109,2]
[355927157,1741716723391,-500.0,0.00024109,2]
[355927158,1741716723401,-500.0,0.00024109,2]
[355927159,1741716723411,-1070.64,0.00024109,2]
[355927160,1741716723422,-939.85,0.00024109,2]
[355927161,1741716723432,-500.0,0.00024109,2]
[355927162,1741716723443,-500.0,0.00024109,2]
[355927163,1741716723453,-700.06,0.00024109,2]
[355927164,1741716723462,-500.0,0.00024109,2]
[355927165,1741716723472,-500.0,0.00024109,2]
[355927166,1741716723482,-500.0,0.00024109,2]
[355927167,1741716723493,-479.66954955,0.00024109,2]
[355927168,1741716723502,-500.0,0.00024109,2]
[355927169,1741716723512,-500.0,0.00024109,2]
[355927170,1741716723522,-914.13,0.00024109,2]
[355927171,1741716723532,-1543.09,0.00024109,2]
[355927172,1741716723542,-1087.78,0.00024109,2]
[355927173,1741716723551,-500.0,0.00024109,2]
[355927174,1741716723561,-500.0,0.00024109,2]
[355927175,1741716723574,-500.0,0.00024109,2]
[355927176,1741716723585,-3025.57,0.00024109,2]
[355927177,1741716723595,-525.06,0.00024109,2]
[355927178,1741716723606,-500.0,0.00024109,2]
[355927179,1741716723617,-500.0,0.00024109,2]
[355927180,1741716723627,-1013.34,0.00024109,2]
[355927181,1741716723638,-500.0,0.00024109,2]
[355927182,1741716723648,-500.0,0.00024109,2]
[355927183,1741716723659,-500.0,0.00024109,2]
[355927184,1741716723669,-517.5119974,0.00024109,2]
[355927185,1741716723679,-2686.03,0.00024109,2]
[355927186,1741716723689,-500.0,0.00024109,2]
[355927187,1741716723699,-1595.33,0.00024109,2]
[355927188,1741716723710,-500.0,0.00024109,2]
[355927189,1741716723720,-500.0,0.00024109,2]
[355927190,1741716723732,-500.0,0.00024109,2]
[355927191,1741716723742,-2451.3,0.00024109,2]
[355927192,1741716723752,-1447.92,0.00024109,2]
[355927193,1741716723763,-512.99086167,0.00024109,2]
[355927194,1741716723773,-500.0,0.00024109,2]
[355927195,1741716723783,-1572.03,0.00024109,2]
[355927196,1741716723793,-1572.03,0.00024109,2]
[355927197,1741716723918,-1572.03,0.00024109,2]
[355927198,1741716723929,-1572.03,0.00024109,2]
[355927199,1741716723939,-1572.03,0.00024109,2]
[355927200,1741716723950,-1572.03,0.00024109,2]
[355927201,1741716723960,-2298.88,0.00024109,2]
[355927202,1741716723970,-1572.03,0.00024109,2]
[355927203,1741716723980,-1572.03,0.00024109,2]
[355927204,1741716723989,-1572.03,0.00024109,2]
[355927205,1741716723999,-500.0,0.00024109,2]
[355927206,1741716724009,-500.0,0.00024109,2]
[355927207,1741716724019,-500.0,0.00024109,2]
[355927208,1741716724029,-2808.13,0.00024109,2]
[355927209,1741716724039,-500.0,0.00024109,2]
[355927210,1741716724049,-200.0,0.00024109,2]
[355927211,1741716724059,-644.15447953,0.00024109,2]
[355927212,1741716724071,-567.02062487,0.00024109,2]
[355927213,1741716724080,-2473.59,0.00024109,2]
[355927214,1741716724090,-500.0,0.00024109,2]
[355927215,1741716724100,-500.0,0.00024109,2]
[355927216,1741716724109,-500.0,0.00024109,2]
[355927217,1741716724119,-500.0,0.00024109,2]
[355927218,1741716724132,-500.0,0.00024109,2]
[355927219,1741716724141,-500.0,0.00024109,2]
[355927220,1741716724151,-500.0,0.00024109,2]
[355927221,1741716724161,-780.35,0.00024109,2]
[355927222,1741716724170,-2284.96,0.00024109,2]
[355927223,1741716724179,-1184.9,0.00024109,2]
[355927224,1741716724188,-500.0,0.00024109,2]
[355927225,1741716724198,-1614.31,0.00024109,2]
[355927226,1741716724208,-500.0,0.00024109,2]
[355927227,1741716724217,-896.04,0.00024109,2]
[355927228,1741716724227,-500.0,0.00024109,2]
[355927229,1741716724237,-825.42,0.00024109,2]
[355927230,1741716724247,-612.17,0.00024109,2]
[355927231,1741716724257,-500.0,0.00024109,2]
[355927232,1741716724267,-500.0,0.00024109,2]
[355927233,1741716724277,-1857.45,0.00024109,2]
[355927234,1741716724287,-500.0,0.00024109,2]
[355927235,1741716724297,-1429.9,0.00024109,2]
[355927236,1741716724306,-9645.49,0.00024109,2]
[355927237,1741716724316,-500.0,0.00024109,2]
[355927238,1741716724326,-500.0,0.00024109,2]
[355927239,1741716724336,-899.98,0.00024109,2]
[355927240,1741716724346,-500.0,0.00024109,2]
[355927241,1741716724356,-7102.33,0.00024109,2]
[355927242,1741716724366,-500.0,0.00024109,2]
[355927243,1741716724376,-500.0,0.00024109,2]
[355927244,1741716724386,-500.0,0.00024109,2]
[355927245,1741716724396,-11976.4,0.00024109,2]
[355927246,1741716724407,-1284.87,0.00024109,2]
[355927247,1741716724417,-855.17,0.00024109,2]
[355927248,1741716724428,-500.0,0.00024109,2]
[355927249,1741716724440,-500.0,0.00024109,2]
[355927250,1741716724451,-500.0,0.00024109,2]
[355927251,1741716724462,-500.0,0.00024109,2]
[355927252,1741716724473,-23367.44,0.00024109,2]
[355927253,1741716724483,-500.0,0.00024109,2]
[355927254,1741716724494,-500.0,0.00024109,2]
[355927255,1741716724505,-500.0,0.00024109,2]
[355927256,1741716724516,-669.93,0.00024109,2]
[355927257,1741716724526,-500.0,0.00024109,2]
[355927258,1741716724537,-500.0,0.00024109,2]
[355927259,1741716724547,-500.0,0.00024109,2]
[355927260,1741716724557,-1907.14,0.00024109,2]
[355927261,1741716724569,-500.0,0.00024109,2]
[355927262,1741716724580,-500.0,0.00024109,2]
[355927263,1741716724590,-2813.74,0.00024109,2]
[355927264,1741716724599,-500.0,0.00024109,2]
[355927265,1741716724609,-562.82,0.00024109,2]
[355927266,1741716724618,-500.0,0.00024109,2]
[355927267,1741716724628,-1222.25,0.00024109,2]
[355927268,1741716724643,-514.05,0.00024109,2]
[355927269,1741716724653,-2182.16,0.00024109,2]
[355927270,1741716724662,-500.0,0.00024109,2]
[355927271,1741716724671,-299.45683668,0.00024109,2]
[355927272,1741716724680,-573.01,0.00024109,2]
[355927273,1741716724690,-4470.27,0.00024109,2]
[355927274,1741716724699,-1342.73,0.00024109,2]
[355927275,1741716724709,-569.48147303,0.00024109,2]
[355927276,1741716724718,-914.18,0.00024109,2]
[355927277,1741716724727,-500.0,0.00024109,2]
[355927278,1741716724737,-500.0,0.00024109,2]
[355927279,1741716724747,-578.89,0.00024109,2]
[355927280,1741716724757,-500.0,0.00024109,2]
[355927281,1741716724767,-500.0,0.00024109,2]
[355927282,1741716724777,-500.0,0.00024109,2]
[355927283,1741716724786,-989.87,0.00024109,2]
[355927284,1741716724795,-934.23,0.00024109,2]
[355927285,1741716724805,-885.21,0.00024109,2]
[355927286,1741716724813,-2800.07,0.00024109,2]
[355927287,1741716724825,-1444.17,0.00024109,2]
[355927288,1741716724834,-4730.12,0.00024109,2]
[355927289,1741716724843,-500.0,0.00024109,2]
[355927290,1741716724853,-3755.9,0.00024109,2]